fUST/lending_fUST_20241118
["ID","MTS","AMOUNT","RATE_DAILY","PERIOD"]
[342434205,1731862238007,-195.952,0.00019177,2]
[342434207,1731862238017,-172.84139473,0.00019177,2]
[342434209,1731862238026,-586.18746959,0.00019177,2]
[342434210,1731862238036,-500.0,0.00019177,2]
[342434212,1731862238045,-500.0,0.00019177,2]
[342434214,1731862238055,-500.0,0.00019177,2]
[342434216,1731862238064,-373.46040073,0.00019177,2]
[342434218,1731862238074,-500.0,0.00019177,2]
[342434220,1731862238083,-500.0,0.00019177,2]
[342434221,1731862238093,-383.69346011,0.00019177,2]
[342434223,1731862238102,-500.0,0.00019177,2]
[342434225,1731862238111,-503.14002875,0.00019177,2]
[342434227,1731862238120,-465.65690585,0.00019177,2]
[342434229,1731862238130,-500.0,0.00019177,2]
[342434230,1731862238139,-500.0,0.00019177,2]
[342434232,1731862238149,-500.0,0.00019177,2]
[342434233,1731862238158,-500.0,0.00019177,2]
[342434234,1731862238167,-500.0,0.00019177,2]
[342434235,1731862238178,-500.0,0.00019177,2]
[342434236,1731862238188,-500.0,0.00019177,2]
[342434237,1731862238197,-500.0,0.00019177,2]
[342434238,1731862238206,-500.0,0.00019177,2]
[342434239,1731862238216,-500.0,0.00019177,2]
[342434240,1731862238225,-500.0,0.00019177,2]
[342434241,1731862238235,-500.0,0.00019177,2]
[342434242,1731862238244,-500.0,0.00019177,2]
[342434243,1731862238254,-500.0,0.00019177,2]
[342434244,1731862238263,-500.0,0.00019177,2]
[342434245,1731862238272,-500.0,0.00019177,2]
[342434246,1731862238282,-500.0,0.00019177,2]
[342434247,1731862238292,-500.0,0.00019177,2]
[342434248,1731862238301,-500.0,0.00019177,2]
[342434249,1731862238310,-500.0,0.00019177,2]
[342434250,1731862238319,-500.0,0.00019177,2]
[342434251,1731862238328,-500.0,0.00019177,2]
[342434252,1731862238338,-567.04216888,0.00019177,2]
[342434253,1731862238347,-500.0,0.00019177,2]
[342434254,1731862238356,-500.0,0.00019177,2]
[342434255,1731862238365,-500.0,0.00019177,2]
[342434256,1731862238374,-500.0,0.00019177,2]
[342434257,1731862238384,-500.0,0.00019177,2]
[342434258,1731862238393,-500.0,0.00019177,2]
[342434259,1731862238403,-500.0,0.00019177,2]
[342434260,1731862238414,-500.0,0.00019177,2]
[342434261,1731862238425,-500.0,0.00019177,2]
[342434262,1731862238434,-306.70421689,0.00019177,2]
[342434263,1731862238444,-500.0,0.00019177,2]
[342434264,1731862238454,-500.0,0.00019177,2]
[342434265,1731862238463,-316.70221715,0.00019178,2]
[342434266,1731862238472,-500.0,0.00019178,2]
[342434267,1731862238482,-549.73816107,0.00019178,2]
[342434268,1731862238494,-2000.0,0.00019178,2]
[342434269,1731862238504,-2092.86473665,0.00019178,2]
[342434270,1731862238513,-285.917246,0.00019178,2]
[342434271,1731862238523,-285.917246,0.00019178,2]
[342434272,1731862238532,-285.917246,0.00019178,2]
[342434273,1731862238541,-285.917246,0.00019178,2]
[342434274,1731862238550,-285.917246,0.00019178,2]
[342434275,1731862238559,-285.917246,0.00019178,2]
[342434276,1731862238569,-285.917246,0.00019178,2]
[342434277,1731862238579,-285.917246,0.00019178,2]
[342434278,1731862238588,-285.917246,0.00019178,2]
[342434279,1731862238597,-285.917246,0.00019178,2]
[342434280,1731862238607,-285.917246,0.00019178,2]
[342434281,1731862238616,-285.917246,0.00019178,2]
[342434282,1731862238625,-285.917246,0.00019178,2]
[342434283,1731862238634,-285.917246,0.00019178,2]
[342434284,1731862238643,-285.917246,0.00019178,2]
[342434285,1731862238652,-285.917243,0.00019178,2]
[342434286,1731862238661,-395.224128,0.00019178,2]
[342434287,1731862238672,-395.224128,0.00019178,2]
[342434288,1731862238681,-395.224128,0.00019178,2]
[342434289,1731862238690,-395.224128,0.00019178,2]
[342434290,1731862238698,-395.224128,0.00019178,2]
[342434291,1731862238707,-395.224128,0.00019178,2]
[342434292,1731862238716,-395.224128,0.00019178,2]
[342434293,1731862238725,-395.224128,0.00019178,2]
[342434294,1731862238734,-395.224128,0.00019178,2]
[342434295,1731862238743,-395.224128,0.00019178,2]
[342434296,1731862238752,-395.224128,0.00019178,2]
[342434297,1731862238762,-395.224128,0.00019178,2]
[342434298,1731862238771,-395.224128,0.00019178,2]
[342434299,1731862238781,-395.224128,0.00019178,2]
[342434300,1731862238790,-395.224128,0.00019178,2]
[342434301,1731862238800,-395.224128,0.00019178,2]
[342434302,1731862238812,-395.224128,0.00019178,2]
[342434303,1731862238822,-395.224128,0.00019178,2]
[342434304,1731862238831,-395.224128,0.00019178,2]
[342434305,1731862238841,-395.224125,0.00019178,2]
[342434306,1731862238851,-151.0,0.00019178,2]
[342434307,1731862238860,-151.0,0.00019178,2]
[342434308,1731862238869,-151.0,0.00019178,2]
[342434309,1731862238878,-151.0,0.00019178,2]
[342434310,1731862238888,-151.0,0.00019178,2]
[342434311,1731862238897,-152.89163,0.00019178,2]
[342434312,1731862238906,-151.0,0.00019178,2]
[342434313,1731862238918,-151.0,0.00019178,2]
[342434314,1731862238927,-151.0,0.00019178,2]
[342434315,1731862238937,-151.0,0.00019178,2]
[342434316,1731862238947,-240.588338,0.00019178,2]
[342434317,1731862238957,-151.0,0.00019178,2]
[342434318,1731862238967,-212.925336,0.00019178,2]
[342434319,1731862238977,-501.25321866,0.00019178,2]
[342434320,1731862238986,-154.47906,0.00019178,2]
[342434321,1731862238996,-154.47906,0.00019178,2]
[342434322,1731862239006,-154.47906,0.00019178,2]
[342434323,1731862239015,-154.47906,0.00019178,2]
[342434324,1731862239024,-154.47906,0.00019178,2]
[342434325,1731862239034,-154.47906,0.00019178,2]
[342434326,1731862239043,-154.47906,0.00019178,2]
[342434327,1731862239052,-154.47906,0.00019178,2]
[342434328,1731862239061,-154.47906,0.00019178,2]
[342434329,1731862239071,-154.47906,0.00019178,2]
[342434330,1731862239081,-154.47906,0.00019178,2]
[342434331,1731862239090,-154.47906,0.00019178,2]
[342434332,1731862239100,-154.47906,0.00019178,2]
[342434333,1731862239111,-154.47906,0.00019178,2]
[342434334,1731862239122,-154.47906,0.00019178,2]
[342434335,1731862239131,-154.47906,0.00019178,2]
[342434336,1731862239142,-154.47906,0.00019178,2]
[342434337,1731862239152,-154.47907,0.00019178,2]
[342434338,1731862239162,-448.5958494,0.00019178,2]
[342434340,1731862239173,-151.0,0.00019178,2]
[342434342,1731862239183,-151.0,0.00019178,2]
[342434344,1731862239193,-151.0,0.00019178,2]
[342434345,1731862239203,-151.0,0.00019178,2]
[342434347,1731862239213,-151.0,0.00019178,2]
[342434348,1731862239223,-151.0,0.00019178,2]
[342434349,1731862239233,-256.360736,0.00019178,2]
[342434350,1731862239243,-500.0,0.00019178,2]
[342434351,1731862239253,-1000.0,0.00019178,2]
[342434352,1731862239262,-1000.0,0.00019178,2]
[342434353,1731862239272,-1000.0,0.00019178,2]
[342434354,1731862239281,-1000.0,0.00019178,2]
[342434355,1731862239291,-1000.0,0.00019178,2]
[342434356,1731862239300,-1000.0,0.00019178,2]
[342434357,1731862239310,-1000.0,0.00019178,2]
[342434358,1731862239319,-1000.0,0.00019178,2]
[342434359,1731862239329,-1000.0,0.00019178,2]
[342434360,1731862239338,-1000.0,0.00019178,2]
[342434361,1731862239348,-1000.0,0.00019178,2]
[342434362,1731862239357,-1000.0,0.00019178,2]
[342434363,1731862239366,-1000.0,0.00019178,2]
[342434364,1731862239375,-1000.0,0.00019178,2]
[342434365,1731862239385,-1000.0,0.00019178,2]
[342434366,1731862239394,-1000.0,0.00019178,2]
[342434368,1731862239403,-1000.0,0.00019178,2]
[342434370,1731862239415,-1000.0,0.00019178,2]
[342434371,1731862239425,-1000.0,0.00019178,2]
[342434372,1731862239434,-1000.0,0.00019178,2]
[342434373,1731862239443,-500.0,0.00019178,2]
[342434374,1731862239452,-1000.0,0.00019178,2]
[342434376,1731862239463,-1000.0,0.00019178,2]
[342434378,1731862239473,-540.91,0.00019178,2]
[342434380,1731862239484,-1000.0,0.00019178,2]
[342434382,1731862239493,-544.26,0.00019178,2]
[342434383,1731862239504,-500.0,0.00019178,2]
[342434384,1731862239513,-500.0,0.00019178,2]
[342434386,1731862239523,-740.6,0.00019178,2]
[342434388,1731862239532,-560.09413031,0.00019178,2]
[342434389,1731862239542,-1338.02,0.00019178,2]
[342434390,1731862239551,-669.4,0.00019178,2]
[342434391,1731862239560,-151.0,0.00019178,2]
[342434392,1731862239569,-151.0,0.00019178,2]
[342434394,1731862239579,-151.0,0.00019178,2]
[342434395,1731862239588,-151.0,0.00019178,2]
[342434396,1731862239597,-151.0,0.00019178,2]
[342434397,1731862239606,-254.20019,0.00019178,2]
[342434398,1731862239616,-500.0,0.00019178,2]
[342434399,1731862239626,-500.0,0.00019178,2]
[342434401,1731862239635,-500.0,0.00019178,2]
[342434403,1731862239645,-500.0,0.00019178,2]
[342434404,1731862239654,-1079.1,0.00019178,2]
[342434405,1731862239664,-500.0,0.00019178,2]
[342434406,1731862239674,-500.0,0.00019178,2]
[342434407,1731862239683,-500.0,0.00019178,2]
[342434408,1731862239692,-271.78448813,0.00019178,2]
[342434409,1731862239701,-518.27,0.00019178,2]
[342434410,1731862239710,-665.71,0.00019178,2]
[342434411,1731862239719,-428.07505011,0.00019178,2]
[342434412,1731862239740,-351.15494989,0.00019178,2]
[342434413,1731862239749,-500.0,0.00019178,2]
[342434414,1731862239758,-500.0,0.00019178,2]
[342434415,1731862239767,-500.0,0.00019178,2]
[342434416,1731862239776,-305.692236,0.00019178,2]
[342434417,1731862239785,-305.692236,0.00019178,2]
[342434418,1731862239795,-305.692236,0.00019178,2]
[342434419,1731862239804,-305.692236,0.00019178,2]
[342434420,1731862239814,-305.692236,0.00019178,2]
[342434421,1731862239823,-151.0,0.00019178,2]
[342434422,1731862239832,-305.692236,0.00019178,2]
[342434424,1731862239842,-151.0,0.00019178,2]
[342434426,1731862239851,-187.32650411,0.00019178,2]
[342434427,1731862240032,-118.36573189,0.00019178,2]
[342434428,1731862240042,-151.0,0.00019178,2]
[342434429,1731862240051,-305.692236,0.00019178,2]
[342434430,1731862240061,-151.0,0.00019178,2]
[342434431,1731862240070,-305.692236,0.00019178,2]
[342434432,1731862240079,-151.0,0.00019178,2]
[342434433,1731862240088,-305.692236,0.00019178,2]
[342434434,1731862240098,-151.0,0.00019178,2]
[342434435,1731862240107,-305.692236,0.00019178,2]
[342434436,1731862240116,-151.0,0.00019178,2]
[342434437,1731862240125,-305.692236,0.00019178,2]
[342434438,1731862240135,-151.0,0.00019178,2]
[342434439,1731862240144,-305.692236,0.00019178,2]
[342434440,1731862240154,-305.692236,0.00019178,2]
[342434441,1731862240165,-305.692236,0.00019178,2]
[342434442,1731862240177,-500.0,0.00019178,2]
[342434443,1731862240186,-305.692236,0.00019178,2]
[342434444,1731862240196,-305.692236,0.00019178,2]
[342434445,1731862240205,-305.692236,0.00019178,2]
[342434446,1731862240214,-305.692236,0.00019178,2]
[342434447,1731862240224,-305.692228,0.00019178,2]
[342434448,1731862240233,-548.21,0.00019178,2]
[342434449,1731862240243,-504.34570442,0.00019178,2]
[342434450,1731862240252,-500.0,0.00019178,2]
[342434451,1731862240261,-500.0,0.00019178,2]
[342434452,1731862240270,-500.0,0.00019178,2]
[342434453,1731862240279,-622.61896546,0.00019178,2]
[342434454,1731862240288,-500.0,0.00019178,2]
[342434455,1731862240298,-500.0,0.00019178,2]
[342434456,1731862240307,-245.11428811,0.00019178,2]
[342434457,1731862240316,-500.0,0.00019178,2]
[342434458,1731862240325,-500.0,0.00019178,2]
[342434459,1731862240337,-768.59621094,0.00019178,2]
[342434460,1731862240358,-918.88378906,0.00019178,2]
[342434461,1731862240367,-500.0,0.00019178,2]
[342434462,1731862240376,-500.0,0.00019178,2]
[342434463,1731862240386,-500.0,0.00019178,2]
[342434464,1731862240395,-500.0,0.00019178,2]
[342434465,1731862240404,-500.0,0.00019178,2]
[342434466,1731862240415,-590.84885759,0.00019178,2]
[342434467,1731862240426,-500.0,0.00019178,2]
[342434468,1731862240435,-151.0,0.00019178,2]
[342434469,1731862240444,-151.0,0.00019178,2]
[342434470,1731862240452,-151.0,0.00019178,2]
[342434471,1731862240462,-500.0,0.00019178,2]
[342434472,1731862240471,-593.48,0.00019178,2]
[342434473,1731862240480,-500.0,0.00019178,2]
[342434474,1731862240491,-403.66247829,0.00019178,2]
[342434475,1731862240500,-500.0,0.00019178,2]
[342434476,1731862240509,-500.0,0.00019178,2]
[342434477,1731862240518,-500.0,0.00019178,2]
[342434478,1731862240527,-500.0,0.00019178,2]
[342434479,1731862240539,-119.26804502,0.00019178,2]
[342434480,1731862240552,-606.67195498,0.00019178,2]
[342434481,1731862240561,-500.0,0.00019178,2]
[342434482,1731862240570,-500.0,0.00019178,2]
[342434483,1731862240580,-500.0,0.00019178,2]
[342434484,1731862240589,-500.0,0.00019178,2]
[342434485,1731862240599,-500.0,0.00019178,2]
[342434486,1731862240609,-971.01611131,0.00019178,2]
[342434505,1731862242755,-468.68,0.00019168,3]
[342434506,1731862242765,-49.10388869,0.00019178,2]
[342434507,1731862242775,-186.15492806,0.00019178,2]
[342434508,1731862242785,-500.0,0.00019178,2]
[342434509,1731862242796,-500.0,0.00019178,2]
[342434510,1731862242805,-500.0,0.00019178,2]
[342434511,1731862242816,-151.0,0.00019178,2]
[342434512,1731862242825,-151.0,0.00019178,2]
[342434513,1731862242836,-151.0,0.00019178,2]
[342434514,1731862242845,-151.0,0.00019178,2]
[342434515,1731862242855,-211.45286353,0.00019178,2]
[342434535,1731862320115,15635.42041372,0.0001,2]
[342435381,1731862758288,193.43,0.00025,120]
[342435382,1731862909155,228.628791,0.00013973,2]
[342435484,1731863438123,-500.28,0.00015,2]
[342435486,1731863438133,-8591.82,0.000174,2]
[342435497,1731863438236,-36160.0,0.000174,2]
[342435574,1731863439887,-28035.59890757,0.000174,2]
[342435598,1731863442993,-31733.90045514,0.000174,2]
[342435599,1731863443004,-3482.37530404,0.000174,2]
[342435600,1731863443015,-4680.74298417,0.000174,2]
[342435601,1731863443048,-15155.69999989,0.000174,2]
[342435602,1731863443060,-10919.22931058,0.000174,2]
[342435639,1731863448749,-198969.235,0.00023,15]
[342435640,1731863484473,1030.765,0.00020752,15]
[342435641,1731863665508,217.197351,0.00013973,2]
[342435645,1731864342930,206.337483,0.00013973,2]
[342435706,1731864638301,-46224.67868861,0.000174,2]
[342435707,1731864638312,-746.5,0.00018136,2]
[342435708,1731864638323,-314.117976,0.00018177,2]
[342435709,1731864638333,-157.3463565,0.00019078,2]
[342435710,1731864638343,-2204.95867888,0.00019078,2]
[342435711,1731864638365,-8.27393474,0.00019078,2]
[342435712,1731864638375,-300.0,0.00019176,2]
[342435713,1731864638386,-300.0,0.00019176,2]
[342435714,1731864638396,-724.54999231,0.00019177,2]
[342435715,1731864638406,-13.67607295,0.00019177,2]
[342435716,1731864638418,-143.08592705,0.00019177,2]
[342435717,1731864638428,-500.0,0.00019177,2]
[342435718,1731864638439,-500.0,0.00019177,2]
[342435719,1731864638449,-355.14846457,0.00019177,2]
[342435720,1731864638459,-500.0,0.00019177,2]
[342435721,1731864638470,-500.0,0.00019177,2]
[342435722,1731864638480,-500.0,0.00019177,2]
[342435723,1731864638490,-500.0,0.00019177,2]
[342435724,1731864638500,-500.0,0.00019177,2]
[342435725,1731864638509,-500.0,0.00019177,2]
[342435726,1731864638519,-11.42661423,0.00019177,2]
[342435772,1731864640141,-488.57338577,0.00019177,2]
[342435774,1731864640151,-500.0,0.00019177,2]
[342435776,1731864640161,-500.0,0.00019177,2]
[342435778,1731864640171,-500.0,0.00019177,2]
[342435780,1731864640181,-500.0,0.00019177,2]
[342435782,1731864640190,-433.91666715,0.00019177,2]
[342435792,1731864643312,-66.08333285,0.00019177,2]
[342435793,1731864643321,-500.0,0.00019177,2]
[342435794,1731864643331,-268.10799796,0.00019177,2]
[342435795,1731864643341,-500.0,0.00019177,2]
[342435796,1731864643351,-500.0,0.00019177,2]
[342435797,1731864643360,-500.0,0.00019177,2]
[342435798,1731864643370,-500.0,0.00019177,2]
[342435800,1731864643379,-500.0,0.00019177,2]
[342435802,1731864643389,-500.0,0.00019177,2]
[342435804,1731864643399,-500.0,0.00019177,2]
[342435805,1731864643408,-500.0,0.00019177,2]
[342435806,1731864643418,-493.16901122,0.00019177,2]
[342435807,1731864643427,-500.0,0.00019177,2]
[342435808,1731864643437,-413.34830705,0.00019177,2]
[342435809,1731864643446,-500.0,0.00019177,2]
[342435810,1731864643455,-500.0,0.00019177,2]
[342435811,1731864643465,-500.0,0.00019177,2]
[342435812,1731864643479,-211.23119983,0.00019177,2]
[342435813,1731864643491,-500.0,0.00019177,2]
[342435814,1731864643501,-650.0,0.00019177,2]
[342435815,1731864643511,-500.0,0.00019177,2]
[342435816,1731864643520,-500.0,0.00019177,2]
[342435817,1731864643530,-500.0,0.00019177,2]
[342435818,1731864643541,-500.0,0.00019177,2]
[342435819,1731864643551,-211.13481144,0.00019178,2]
[342435820,1731864643561,-154.162139,0.00019178,2]
[342435821,1731864643571,-151.0,0.00019178,2]
[342435822,1731864643580,-151.0,0.00019178,2]
[342435823,1731864643590,-151.0,0.00019178,2]
[342435824,1731864643600,-151.0,0.00019178,2]
[342435825,1731864643610,-151.0,0.00019178,2]
[342435826,1731864643619,-151.0,0.00019178,2]
[342435827,1731864643628,-290.771815,0.00019178,2]
[342435828,1731864643638,-151.0,0.00019178,2]
[342435829,1731864643647,-151.0,0.00019178,2]
[342435830,1731864643657,-152.938004,0.00019178,2]
[342435831,1731864643667,-151.0,0.00019178,2]
[342435832,1731864643677,-151.0,0.00019178,2]
[342435833,1731864643886,-151.0,0.00019178,2]
[342435834,1731864643897,-151.0,0.00019178,2]
[342435835,1731864643907,-151.0,0.00019178,2]
[342435836,1731864643916,-151.0,0.00019178,2]
[342435837,1731864643926,-151.0,0.00019178,2]
[342435838,1731864643935,-151.0,0.00019178,2]
[342435839,1731864643945,-286.529011,0.00019178,2]
[342435840,1731864643955,-286.529011,0.00019178,2]
[342435841,1731864643964,-286.529011,0.00019178,2]
[342435842,1731864643976,-286.529011,0.00019178,2]
[342435843,1731864643986,-286.529011,0.00019178,2]
[342435844,1731864643996,-286.529011,0.00019178,2]
[342435845,1731864644007,-286.529011,0.00019178,2]
[342435846,1731864644018,-286.529011,0.00019178,2]
[342435847,1731864644028,-286.529011,0.00019178,2]
[342435848,1731864644038,-286.529011,0.00019178,2]
[342435849,1731864644048,-286.529011,0.00019178,2]
[342435850,1731864644058,-286.529011,0.00019178,2]
[342435851,1731864644068,-286.529011,0.00019178,2]
[342435852,1731864644078,-286.529011,0.00019178,2]
[342435853,1731864644087,-286.529011,0.00019178,2]
[342435854,1731864644097,-286.529011,0.00019178,2]
[342435855,1731864644106,-286.529006,0.00019178,2]
[342435856,1731864644115,-500.0,0.00019178,2]
[342435857,1731864644130,-151.0,0.00019178,2]
[342435858,1731864644140,-151.0,0.00019178,2]
[342435859,1731864644150,-151.0,0.00019178,2]
[342435860,1731864644160,-151.0,0.00019178,2]
[342435861,1731864644170,-151.0,0.00019178,2]
[342435862,1731864644181,-151.0,0.00019178,2]
[342435863,1731864644190,-151.0,0.00019178,2]
[342435864,1731864644201,-157.95812,0.00019178,2]
[342435865,1731864644211,-500.0,0.00019178,2]
[342435866,1731864644220,-500.0,0.00019178,2]
[342435867,1731864644235,-500.0,0.00019178,2]
[342435868,1731864644249,-500.0,0.00019178,2]
[342435869,1731864644259,-233.05800419,0.00019178,2]
[342435870,1731864644268,-591.4,0.00019178,2]
[342435871,1731864644278,-470.171923,0.00019178,2]
[342435872,1731864644287,-508.49181554,0.00019178,2]
[342435873,1731864644297,-324.76350395,0.00019178,2]
[342435874,1731864644305,-652.99,0.00019178,2]
[342435875,1731864644314,-606.58,0.00019178,2]
[342435876,1731864644325,-500.0,0.00019178,2]
[342435877,1731864644334,-500.0,0.00019178,2]
[342435878,1731864644344,-500.0,0.00019178,2]
[342435879,1731864644353,-500.0,0.00019178,2]
[342435880,1731864644363,-639.92,0.00019178,2]
[342435881,1731864644372,-500.0,0.00019178,2]
[342435882,1731864644382,-500.0,0.00019178,2]
[342435883,1731864644392,-520.16478263,0.00019178,2]
[342435884,1731864644402,-500.0,0.00019178,2]
[342435885,1731864644412,-535.34,0.00019178,2]
[342435886,1731864644422,-500.0,0.00019178,2]
[342435887,1731864644432,-500.0,0.00019178,2]
[342435888,1731864644442,-500.0,0.00019178,2]
[342435889,1731864644452,-500.0,0.00019178,2]
[342435890,1731864644462,-500.0,0.00019178,2]
[342435891,1731864644473,-500.0,0.00019178,2]
[342435892,1731864644483,-515.26045389,0.00019178,2]
[342435893,1731864644492,-500.0,0.00019178,2]
[342435894,1731864644503,-590.86945329,0.00019178,2]
[342435895,1731864644512,-500.0,0.00019178,2]
[342435896,1731864644522,-257.96,0.00019178,2]
[342435897,1731864644532,-500.0,0.00019178,2]
[342435898,1731864644542,-500.0,0.00019178,2]
[342435899,1731864644552,-764.64,0.00019178,2]
[342435900,1731864644562,-500.0,0.00019178,2]
[342435901,1731864644575,-500.0,0.00019178,2]
[342435902,1731864644588,-500.0,0.00019178,2]
[342435903,1731864644598,-500.0,0.00019178,2]
[342435904,1731864644608,-312.05805485,0.00019178,2]
[342435905,1731864644618,-502.33049755,0.00019178,2]
[342435906,1731864644627,-500.0,0.00019178,2]
[342435907,1731864644636,-500.44331335,0.00019178,2]
[342435908,1731864644647,-500.0,0.00019178,2]
[342435909,1731864644656,-1379.01,0.00019178,2]
[342435910,1731864644669,-500.0,0.00019178,2]
[342435911,1731864644687,-500.0,0.00019178,2]
[342435912,1731864644698,-763.22,0.00019178,2]
[342435913,1731864644708,-500.0,0.00019178,2]
[342435914,1731864644717,-500.0,0.00019178,2]
[342435915,1731864644731,-522.93805587,0.00019178,2]
[342435916,1731864644741,-500.0,0.00019178,2]
[342435917,1731864644751,-500.0,0.00019178,2]
[342435918,1731864644760,-500.0,0.00019178,2]
[342435919,1731864644770,-303.86236285,0.00019178,2]
[342435920,1731864644783,-500.0,0.00019178,2]
[342435921,1731864644797,-500.0,0.00019178,2]
[342435922,1731864644807,-500.0,0.00019178,2]
[342435923,1731864644816,-500.0,0.00019178,2]
[342435924,1731864644827,-187.57861443,0.00019178,2]
[342435925,1731864644837,-573.34001964,0.00019178,2]
[342435926,1731864644847,-225.31708021,0.00019178,2]
[342435927,1731864644857,-500.0,0.00019178,2]
[342435928,1731864644866,-500.0,0.00019178,2]
[342435929,1731864644876,-500.0,0.00019178,2]
[342435930,1731864644886,-500.0,0.00019178,2]
[342435931,1731864644895,-500.0,0.00019178,2]
[342435932,1731864644906,-358.66636341,0.00019178,2]
[342435933,1731864644915,-500.0,0.00019178,2]
[342435934,1731864644925,-500.0,0.00019178,2]
[342435935,1731864644935,-500.0,0.00019178,2]
[342435936,1731864644944,-500.0,0.00019178,2]
[342435937,1731864644954,-200.6036782,0.00019178,2]
[342435938,1731864644963,-507.24173528,0.00019178,2]
[342435939,1731864644974,-360.62806431,0.00019178,2]
[342435940,1731864644984,-500.0,0.00019178,2]
[342435941,1731864644994,-500.0,0.00019178,2]
[342435942,1731864645003,-500.0,0.00019178,2]
[342435943,1731864645013,-500.0,0.00019178,2]
[342435944,1731864645023,-500.0,0.00019178,2]
[342435945,1731864645033,-202.61381457,0.00019178,2]
[342435946,1731864645053,-117.85880702,0.00019178,2]
[342435947,1731864645062,-500.0,0.00019178,2]
[342435948,1731864645072,-382.14119298,0.00019178,2]
[342435955,1731865172947,196.020608,0.00013973,2]
[342436005,1731865835218,-600.0,0.000175,2]
[342436006,1731865835228,-618.14544398,0.00017756,2]
[342436075,1731865843320,-3878.80997556,0.00017756,2]
[342436076,1731865843335,-4124.63895446,0.00017756,2]
[342436077,1731865843347,-300.0,0.00018063,2]
[342436078,1731865843360,-300.0,0.00018064,2]
[342436079,1731865843372,-1765.53746611,0.00018065,2]
[342436080,1731865843389,-3334.37789759,0.00018065,2]
[342436082,1731865843402,-1105.52582666,0.00019,2]
[342436083,1731865843415,-1231.77413291,0.00019,2]
[342436084,1731865843427,-1936.5785369,0.00019,2]
[342436085,1731865843437,-150.0,0.00019028,2]
[342436086,1731865843449,-393.07118498,0.00019028,2]
[342436097,1731865846376,-136.92881502,0.00019028,2]
[342436098,1731865846388,-2386.0,0.00019028,2]
[342436099,1731865846399,-1063.0,0.00019028,2]
[342436100,1731865846410,-150.818,0.00019028,2]
[342436101,1731865846421,-150.2,0.00019028,2]
[342436102,1731865846431,-681.88,0.0001909,3]
[342436103,1731865846442,-550.98065746,0.00019099,2]
[342436105,1731865846456,-500.0,0.00019099,2]
[342436107,1731865846469,-500.0,0.00019099,2]
[342436108,1731865846480,-500.0,0.00019099,2]
[342436109,1731865846491,-395.92758967,0.00019099,2]
[342436110,1731865846501,-500.0,0.00019099,2]
[342436111,1731865846515,-357.48122149,0.00019099,2]
[342436112,1731865846528,-500.0,0.00019099,2]
[342436113,1731865846539,-500.0,0.00019099,2]
[342436114,1731865846551,-500.0,0.00019099,2]
[342436115,1731865846562,-500.0,0.00019099,2]
[342436116,1731865846574,-500.0,0.00019099,2]
[342436117,1731865846585,-500.0,0.00019099,2]
[342436118,1731865846597,-500.0,0.00019099,2]
[342436119,1731865846608,-626.53553939,0.00019099,2]
[342436120,1731865846618,-500.0,0.00019099,2]
[342436121,1731865846628,-500.0,0.00019099,2]
[342436122,1731865846638,-259.95967235,0.00019099,2]
[342436123,1731865846649,-500.0,0.00019099,2]